fUSD/lending_fUSD_20250416
["ID","MTS","AMOUNT","RATE_DAILY","PERIOD"]
[358150682,1744780238567,-3518.8649149,0.00017987,2]
[358150683,1744780238577,-25922.23437207,0.00017988,2]
[358150684,1744780238589,-3197.27539582,0.00017988,2]
[358150685,1744780238632,-1463.88406368,0.00017988,2]
[358150686,1744780238644,-2446.27148904,0.00017988,2]
[358150687,1744780238723,-447.77206628,0.00017988,2]
[358150688,1744780238734,-533.69583096,0.00017988,2]
[358150689,1744780238745,-693.69154273,0.00017988,2]
[358150690,1744780238760,-452.64,0.00017988,2]
[358150691,1744780238771,-9247.16874785,0.00017988,2]
[358150692,1744780238791,-15307.25651207,0.00017988,2]
[358150693,1744780238801,-2900.8331771,0.00017988,2]
[358150694,1744780238810,-8250.4978253,0.00017988,2]
[358150695,1744780238819,-3966.0,0.00017989,2]
[358150696,1744780238829,-152.0,0.00017989,2]
[358150697,1744780238838,-91830.05839672,0.00017998,2]
[358150698,1744780238847,-1000.0,0.00017999,2]
[358150700,1744780238856,-1000.0,0.00017999,2]
[358150702,1744780238865,-160.23,0.00017999,2]
[358150704,1744780238874,-650.0,0.00017999,2]
[358150706,1744780238883,-789716.90430007,0.00018,2]
[358150708,1744780238892,-451354.81400318,0.00018,2]
[358150766,1744780240481,-288.07999384,0.00018,2]
[358150768,1744780240493,-723.21934277,0.00018,2]
[358150772,1744780240540,-448.67857483,0.00018,2]
[358150773,1744780240598,-1285.09837437,0.00018,2]
[358150774,1744780240610,-516.86075677,0.00018,2]
[358150775,1744780240710,-500.0,0.00018,2]
[358150776,1744780240722,-487.89012847,0.00018,2]
[358150777,1744780240823,-889.375035,0.00018,2]
[358150778,1744780240834,-28894.01313385,0.00018,2]
[358150779,1744780240846,-252.15731996,0.00018,2]
[358150780,1744780240986,-3094.86716903,0.00018,2]
[358150781,1744780240997,-1414.5329418,0.00018,2]
[358150782,1744780241009,-22353.79882893,0.00018,2]
[358150783,1744780241020,-2929.21133345,0.00018,2]
[358150796,1744780243882,-1557.42999181,0.00018,2]
[358150889,1744780246321,-299.63386842,0.000179,2]
[358150890,1744780246330,-1584.88168995,0.00018,2]
[358150891,1744780246593,-377.55520016,0.00018,2]
[358150892,1744780246605,-504.91084127,0.00018,2]
[358150893,1744780246616,-696.3000125,0.00018,2]
[358150894,1744780246643,-3675.41195589,0.00018,2]
[358150895,1744780246708,-450.79351584,0.00018,2]
[358150910,1744780252604,1139.03784269,0.000171,2]
[358150911,1744780256221,250.0,0.00017,2]
[358150913,1744780296854,250.0,0.00017,2]
[358150914,1744780419233,563.24,0.00015703,2]
[358150915,1744780428867,-506.25661391,0.00017568,2]
[358150916,1744780573317,323.557293,0.00017479,2]
[358150919,1744780940491,1000.0,0.00017353,2]
[358150920,1744780941122,-156.74338609,0.00017568,2]
[358150921,1744780968268,250.0,0.00017398,2]
[358150922,1744781141747,400.7,0.00017331,2]
[358150923,1744781151672,23900.0,0.00017331,2]
[358150924,1744781201092,-150.74321479,0.00017685,2]
[358150925,1744781234474,1309.26350672,0.00015,2]
[358150926,1744781274302,-10.13678521,0.00017685,2]
[358150927,1744781274325,-171.0405,0.00017887,2]
[358150928,1744781274348,-170.19,0.00017893,2]
[358150929,1744781274372,-300.0,0.00017899,2]
[358150930,1744781274396,-2500.0,0.000179,2]
[358150931,1744781274420,-160.54990921,0.000179,2]
[358150932,1744781274445,-1174.2983372,0.000179,2]
[358150933,1744781274469,-618.09285864,0.000179,2]
[358150934,1744781274491,-199.75591228,0.000179,2]
[358150935,1744781274515,-1707.5442879,0.000179,2]
[358150936,1744781274539,-164.4968808,0.0001791,2]
[358150937,1744781274563,-563.24,0.00017967,2]
[358150938,1744781274585,-500.0,0.00017973,2]
[358150939,1744781274608,-500.0,0.00017973,2]
[358150940,1744781274630,-500.0,0.00017973,2]
[358150941,1744781274656,-13078.67233233,0.00017986,2]
[358150942,1744781274680,-1000.0,0.00017986,2]
[358150943,1744781274703,-5827.56319102,0.00017987,2]
[358150944,1744781322796,442.05407189,0.00015,5]
[358150945,1744781322820,1122.4998032,0.00015,5]
[358150981,1744781431544,-366.79,0.00017638,2]
[358150983,1744781431555,-183.97,0.00017774,2]
[358150984,1744781431564,-183.97,0.00017863,2]
[358150985,1744781431575,-300.0,0.00017899,2]
[358150986,1744781431585,-4908.62810212,0.000179,2]
[358150987,1744781431595,-164.4968808,0.0001791,2]
[358150988,1744781431604,-500.0,0.00017973,2]
[358150989,1744781431615,-3305.8234195,0.00017987,2]
[358150990,1744781431624,-26884.2666986,0.00017987,2]
[358150991,1744781431634,-965.5158591,0.00017987,2]
[358150992,1744781431643,-1376.3612908,0.00017987,2]
[358150993,1744781431653,-23184.0210446,0.00017988,2]
[358150994,1744781431662,-832.925449,0.00017988,2]
[358150995,1744781431671,-1187.3511298,0.00017988,2]
[358150996,1744781431681,-425.834,0.00017989,2]
[358150997,1744781431690,-207.4,0.00017989,2]
[358150998,1744781431699,-587.12059922,0.00017999,2]
[358150999,1744781431708,-151101.66433859,0.00018,2]
[358151000,1744781431719,-49657.66085931,0.00018,2]
[358151001,1744781431734,-36367.33774474,0.00018,2]
[358151002,1744781431745,-2098.7355913,0.00018,2]
[358151003,1744781431757,-7885.0,0.00018,2]
[358151004,1744781431768,-12726.40630056,0.00018,2]
[358151005,1744781431783,-4193.60662579,0.00018,2]
[358151006,1744781431795,-2609.49592439,0.00018,2]
[358151007,1744781431806,-10402.38722552,0.00018,2]
[358151008,1744781431817,-1537.47542561,0.00018,2]
[358151009,1744781431828,-25430.0,0.00018,2]
[358151010,1744781431839,-6099.9999999,0.00018,2]
[358151011,1744781431850,-5880.0,0.00018,2]
[358151013,1744781431861,-3550.000005,0.00018,2]
[358151015,1744781431872,-1300.0,0.00018,2]
[358151016,1744781431883,-1653.6026074,0.00018,2]
[358151017,1744781431894,-314.2,0.00018,2]
[358151018,1744781431905,-3122.2533,0.00018,2]
[358151019,1744781431920,-6418.84885197,0.00018,2]
[358151020,1744781431931,-517.891,0.00018,2]
[358151023,1744781437815,-1188.6481,0.000179,2]
[358151024,1744781437825,-582.60509966,0.00018,2]
[358151025,1744781437856,-8376.17735513,0.00018,2]
[358151026,1744781437877,-38681.55567579,0.00018,2]
[358151027,1744781437939,-1671.9703,0.00018,2]
[358151028,1744781437951,-83484.0,0.00018,2]
[358151029,1744781437962,-324054.03006941,0.00018,2]
[358151030,1744781437971,-556.0,0.00018,2]
[358151031,1744781437981,-402721.16112532,0.00018,2]
[358151032,1744781437991,-1000.0,0.00018,2]
[358151033,1744781438000,-1000.0,0.00018,2]
[358151034,1744781438012,-1000.0,0.00018,2]
[358151035,1744781438023,-1000.0,0.00018,2]
[358151036,1744781438032,-1000.0,0.00018,2]
[358151037,1744781438042,-1000.0,0.00018,2]
[358151038,1744781438051,-1000.0,0.00018,2]
[358151039,1744781438060,-1000.0,0.00018,2]
[358151040,1744781438070,-1000.0,0.00018,2]
[358151041,1744781438079,-1000.0,0.00018,2]
[358151042,1744781438089,-1000.0,0.00018,2]
[358151043,1744781438098,-1000.0,0.00018,2]
[358151044,1744781438107,-1000.0,0.00018,2]
[358151046,1744781438117,-1000.0,0.00018,2]
[358151048,1744781438127,-1000.0,0.00018,2]
[358151050,1744781438137,-1000.0,0.00018,2]
[358151052,1744781438146,-1000.0,0.00018,2]
[358151054,1744781438156,-1000.0,0.00018,2]
[358151056,1744781438165,-1000.0,0.00018,2]
[358151058,1744781438177,-1000.0,0.00018,2]
[358151060,1744781438198,-1000.0,0.00018,2]
[358151063,1744781438207,-214.00244918,0.00018,2]
[358151065,1744781438216,-495336.75465934,0.00018,2]
[358151137,1744781439645,-479.80598733,0.00018,2]
[358151138,1744781439762,-318.94558763,0.00018,2]
[358151139,1744781440011,-9525.93158648,0.00018,2]
[358151153,1744781443035,-967.66722004,0.00018,2]
[358151157,1744781445026,-464.29278797,0.00018,2]
[358151175,1744781446026,-0.06502214,0.00017999,2]
[358151178,1744781446042,-314.52080433,0.00017999,2]
[358151180,1744781446053,-185.41417353,0.00017999,2]
[358151182,1744781446063,-500.0,0.00017999,2]
[358151183,1744781446072,-488.58512417,0.00018,2]
[358151184,1744781446083,-31848.999999,0.00018,2]
[358151185,1744781446094,-7012.30625088,0.00018,2]
[358151186,1744781446106,-259.43931699,0.00018,2]
[358151187,1744781446122,-2273.57580114,0.00018,2]
[358151188,1744781446134,-380.41000006,0.00018,2]
[358151190,1744781446145,-258.32500331,0.00018,2]
[358151194,1744781446168,-13547.16567832,0.00018,2]
[358151196,1744781447115,506.91,0.00016039,2]
[358151197,1744781522341,350.0,0.00017752,12]
[358151198,1744781525622,-449.60992785,0.00017565,2]
[358151199,1744781592657,627.62,0.00017391,2]
[358151200,1744781593295,-213.39007215,0.00017565,2]
[358151201,1744781606626,200.0,0.00017436,7]
[358151203,1744781740316,1205.32,0.00017436,2]
[358151204,1744781752439,23694.72,0.00017436,2]
[358151205,1744781768671,2666.30551,7.945e-05,2]
[358151206,1744781779093,-360.64341735,0.00017517,2]
[358151207,1744781854743,4816.328354,0.00017479,2]
[358151208,1744781896212,500.0,0.00017452,2]
[358151210,1744781906744,521.47637356,0.00017452,2]
[358151211,1744781907333,-295.87968766,0.00017567,2]
[358151212,1744781938599,1000.0,0.00017237,2]
[358151213,1744781939141,-377.70881815,0.00017567,2]
[358151214,1744782091063,250.0,0.00017074,2]
[358151215,1744782103539,3650.01,0.00017074,2]
[358151216,1744782104139,-250.0,0.00017567,2]
[358151217,1744782108087,250.0,0.00017,2]
[358151218,1744782108602,-2208.26149419,0.00017567,2]
[358151219,1744782108631,-715.83,0.00017605,2]
[358151220,1744782108662,-159.56158143,0.00017886,2]
[358151221,1744782108690,-7452.0545,0.00017886,2]
[358151222,1744782108719,-159.56158139,0.00017888,2]
[358151223,1744782108749,-159.56158139,0.00017891,2]
[358151224,1744782108779,-159.56158139,0.00017893,2]
[358151225,1744782108809,-159.56158139,0.00017895,2]
[358151226,1744782108842,-159.56158139,0.00017898,2]
[358151227,1744782108872,-300.0,0.00017899,2]
[358151228,1744782108899,-500.0,0.000179,2]
[358151229,1744782108928,-6582.5218,0.000179,2]
[358151230,1744782108955,-747.6229,0.000179,2]
[358151231,1744782108982,-885.8532,0.000179,2]
[358151232,1744782109014,-504.3734,0.000179,2]
[358151233,1744782109041,-1049.7866,0.000179,2]
[358151234,1744782109067,-4597.5645,0.000179,2]
[358151235,1744782109095,-400.67,0.000179,2]
[358151236,1744782109121,-2500.0,0.000179,2]
[358151237,1744782109148,-999.99,0.000179,2]
[358151238,1744782109176,-1012.71,0.000179,2]
[358151239,1744782109208,-7221.6,0.000179,2]
[358151240,1744782109234,-9999.99,0.000179,2]
[358151241,1744782109261,-1853.37,0.000179,2]
[358151242,1744782109289,-6915.33,0.000179,2]
[358151243,1744782109317,-246.82,0.000179,2]
[358151244,1744782109351,-1904.1844,0.000179,2]
[358151245,1744782109380,-37210.8403,0.000179,2]
[358151246,1744782109408,-3646.8691,0.000179,2]
[358151247,1744782109435,-1000.0,0.000179,2]
[358151248,1744782109463,-630.50677173,0.000179,2]
[358151249,1744782109491,-159.56158139,0.000179,2]
[358151250,1744782109516,-1138.3628586,0.000179,2]
[358151251,1744782109542,-568.81496627,0.000179,2]
[358151252,1744782150327,250.0,0.00017,2]
[358151253,1744782225835,5988.11,0.00017234,2]
[358151254,1744782275278,-189.27754714,0.0001759,2]
[358151255,1744782302123,-215.56610093,0.00017589,2]
[358151256,1744782304316,1331.27,0.00017266,2]
[358151257,1744782360632,250.0,0.00017271,2]
[358151258,1744782407100,-84.43389907,0.00017589,2]
[358151259,1744782407123,-114.5137474,0.0001783,2]
[358151260,1744782419787,16787.49,0.00017309,2]
[358151262,1744782562847,534.99,0.00015352,2]
[358151263,1744782570013,10000.0,0.00017,2]
[358151264,1744782611591,6507.73,0.00017178,2]
[358151267,1744782631746,-503.48436925,0.00017616,2]
[358151268,1744782631802,-31.50563075,0.00017616,2]
[358151269,1744782631812,-160.05,0.00017796,2]
[358151270,1744782631822,-51.7862526,0.0001783,2]
[358151271,1744782631831,-170.29762481,0.00017872,2]
[358151272,1744782631861,-129.70237519,0.00017872,2]
[358151273,1744782631870,-4965.7617,0.00017873,2]
[358151274,1744782631880,-748.20674576,0.00017873,2]
[358151275,1744782631891,-263.98575424,0.00017873,2]
[358151276,1744782631901,-9546.0352,0.00017888,2]
[358151277,1744782631911,-2724.33558193,0.000179,2]
[358151278,1744782631920,-630.50677172,0.000179,2]
[358151279,1744782631930,-199.75591226,0.000179,2]
[358151280,1744782631940,-758.9085724,0.000179,2]
[358151281,1744782631949,-164.4968808,0.0001791,2]
[358151282,1744782631959,-11000.0,0.0001797,2]
[358151283,1744782631968,-546.47324367,0.00017973,2]
[358151284,1744782631977,-500.0,0.00017973,2]
[358151285,1744782631988,-500.0,0.00017973,2]
[358151286,1744782631997,-1000.0,0.00017985,2]
[358151287,1744782632007,-61221.04564126,0.00017986,2]
[358151662,1744782637817,-1849.98924318,0.00017986,2]
[358151663,1744782637828,-433.92270507,0.00017986,2]
[358151664,1744782637874,-10233.470495,0.00017986,2]
[358151665,1744782637987,-18091.63031221,0.00017986,2]
[358151666,1744782637997,-340.667,0.00017986,2]
[358151667,1744782638007,-12339.4251592,0.00017986,2]
[358151668,1744782638016,-1395.1049602,0.00017986,2]
[358151669,1744782638027,-4193.2217291,0.00017986,2]
[358151670,1744782638036,-4957.7931539,0.00017986,2]
[358151671,1744782638046,-10426.64279131,0.00017988,2]
[358151672,1744782638058,-692.58748009,0.00017988,2]
[358151673,1744782638067,-1221.0720486,0.00017988,2]
[358151674,1744782638076,-3670.1366513,0.00017988,2]
[358151675,1744782638086,-4339.3313159,0.00017988,2]
[358151676,1744782638096,-207.4,0.00017989,2]
[358151677,1744782638105,-500.0,0.00017999,2]
[358151678,1744782638115,-350.5722489,0.00017999,2]
[358151679,1744782638124,-371.24907863,0.00017999,2]
[358151680,1744782638134,-310367.12912948,0.00018,2]
[358151681,1744782638146,-4703.10644237,0.00018,2]
[358151682,1744782638157,-241815.23161289,0.00018,2]
[358151683,1744782638168,-771.0,0.00018,2]
[358151684,1744782638181,-1123702.36260155,0.00018,2]
[358151738,1744782639948,-1505.06130039,0.00018,2]
[358151739,1744782640246,-147.11433146,0.00018,2]
[358151740,1744782640268,-427.39638274,0.00018,2]
[358151755,1744782642725,15000.0,0.000173,2]
[358151859,1744782684647,300.0,0.000173,6]
[358151860,1744782686739,600.0,0.000174,6]
[358151861,1744782688819,900.0,0.000175,6]
[358151862,1744782690909,1300.0,0.000176,6]
[358151863,1744782692977,1600.0,0.000177,6]
[358151864,1744782695054,300.0,0.000178,6]
[358151865,1744782697133,300.0,0.000179,6]
[358151866,1744782707152,200.0,0.00017208,7]
[358151867,1744782721823,-162.56,0.00017628,2]
[358151868,1744782722214,73.08630705,0.000175,2]
[358151869,1744782722236,9926.91369295,0.000175,2]
[358151870,1744782940538,2400.0,0.000174,2]
[358151871,1744783024634,1041.69,0.00017208,2]
[358151872,1744783123242,1000.0,0.00017208,2]
[358151873,1744783496435,2602.48,0.00017168,2]
[358151874,1744783590177,-199.89476465,0.00017755,2]
[358151875,1744783620668,559.78,0.00015227,2]
[358151876,1744783620881,559.78,0.00017491,2]
[358151877,1744783651278,404.48,0.00017169,2]
[358151878,1744783665567,1000.29573936,0.00017502,2]
[358151879,1744783678445,250.0,0.00017169,2]
[358151880,1744783780615,1473.08,0.00017168,2]
[358151881,1744783804054,-2855.27156788,0.00017622,2]
[358151885,1744783824569,200.0,0.00017132,7]
[358151886,1744783832030,-250.0,0.00017711,2]
[358151887,1744783832041,-188.77284602,0.000178,2]
[358151888,1744783832053,-169.42,0.00017811,2]
[358151889,1744783832063,-150.0,0.00017866,2]
[358151890,1744783832073,-150.0,0.00017868,2]
[358151891,1744783832083,-278.42222105,0.00017871,2]
[358151892,1744783832093,-300.0,0.00017899,2]
[358151893,1744783832103,-300.0,0.00017899,2]
[358151894,1744783832113,-140.12124733,0.000179,2]
[358151895,1744783832135,-359.87875267,0.000179,2]
[358151896,1744783832145,-57.28135653,0.000179,2]
[358151897,1744783832159,-942.71864347,0.000179,2]
[358151898,1744783832169,-2500.0,0.000179,2]
[358151899,1744783832179,-500.19849732,0.000179,2]
[358151900,1744783832189,-5343.59521084,0.000179,2]
[358151901,1744783832200,-2511.69203421,0.000179,2]
[358151902,1744783832210,-150.99,0.000179,2]
[358151903,1744783832220,-993.77,0.000179,2]
[358151904,1744783832230,-150.0,0.0001792,2]
[358151905,1744783832240,-150.0,0.00017952,2]
[358151906,1744783832250,-513.37243021,0.00017973,2]
[358151907,1744783832260,-272.534,0.00017973,2]
[358151908,1744783832270,-3966.0,0.00017976,2]
[358151909,1744783832280,-152.0,0.00017976,2]
[358151910,1744783832291,-285.7858802,0.00017986,2]
[358151911,1744783832301,-858.9773507,0.00017986,2]
[358151912,1744783832311,-1995.4454495,0.00017986,2]
[358151913,1744783832321,-5746.0208855,0.00017986,2]
[358151915,1744783832331,-207.4,0.00017989,2]
[358151917,1744783832341,-475.33097989,0.00017999,2]
[358151918,1744783832351,-331.41298752,0.00017999,2]
[358151919,1744783832361,-9999.99,0.00018,2]
[358151920,1744783832371,-2961.62,0.00018,2]
[358151921,1744783832382,-303597.67621316,0.00018,2]
[358151922,1744783832398,-6364.31449639,0.00018,2]
[358151923,1744783832415,-1349.00852206,0.00018,2]
[358152029,1744783838060,-607.67990312,0.00017622,2]
[358152030,1744783838076,-419.229999,0.00017622,2]
[358152031,1744783838088,-1167.63494088,0.00017622,2]
[358152032,1744783838098,-1000.0,0.000179,2]
[358152033,1744783838107,-3631.43429695,0.00018,2]
[358152034,1744783838125,-1530.76346164,0.00018,2]
[358152035,1744783838137,-107877.15240862,0.00018,2]
[358152036,1744783838146,-775.0,0.00018,2]
[358152037,1744783838156,-1257636.44180582,0.00018,2]
[358152038,1744783838184,-26535.93180847,0.00018,2]
[358152039,1744783838195,-250.60000006,0.00018,2]
[358152040,1744783838303,-177075.16756676,0.00018,2]
[358152041,1744783838315,-983.39574498,0.00018,2]
[358152086,1744783840233,-3583.06796825,0.00018,2]
[358152093,1744783840294,-1668.9,0.00018,2]
[358152095,1744783840305,-435.38038272,0.00018,2]
[358152331,1744783844698,-22.21046017,0.00018,2]
[358152332,1744783844741,-2553.551,0.00018,2]
[358152333,1744783844753,-1346.15259795,0.00018,2]
[358152337,1744783846179,-30263.915951,0.00018,2]
[358152338,1744783846401,-62771.31900352,0.00018,2]
[358152339,1744783846424,-789.41552031,0.00018,2]
[358152340,1744783846434,-784.9815,0.00018,2]
[358152341,1744783846445,-1414.157248,0.00018,2]
[358152342,1744783846456,-545.152395,0.00018,2]
[358152343,1744783846467,-1144.67356,0.00018,2]
[358152344,1744783846478,-472.95900005,0.00018,2]
[358152346,1744783846489,-868.354,0.00018,2]
[358152350,1744783961438,250.0,0.00017,2]
[358152351,1744784002383,250.0,0.00017,2]
[358152352,1744784065513,198.63,0.00017439,2]
[358152353,1744784134200,-162.56,0.00017628,2]
[358152354,1744784134225,-150.89051264,0.00017748,2]
[358152355,1744784134251,-300.0,0.00017899,2]
[358152356,1744784134276,-810.9555,0.000179,2]
[358152357,1744784134303,-37210.8403,0.000179,2]
[358152358,1744784134327,-500.0,0.000179,2]
[358152359,1744784134580,-500.19849729,0.000179,2]
[358152360,1744784134606,-199.75591226,0.000179,2]
[358152361,1744784134631,-192.48853562,0.000179,2]
[358152362,1744784257622,-168.55610108,0.0001757,2]
[358152363,1744784349267,150.0,0.00017416,2]
[358152364,1744784470099,-1000.0,0.00021918,14]
[358152365,1744784470132,-1000.0,0.00021918,14]
[358152366,1744784470161,-1000.0,0.00021918,14]
[358152367,1744784470191,-1000.0,0.00021918,14]
[358152368,1744784470221,-1000.0,0.00021918,14]
[358152369,1744784470249,-1000.0,0.00021918,14]
[358152370,1744784470276,-1000.0,0.00021918,14]
[358152371,1744784470308,-1000.0,0.00021918,14]
[358152372,1744784470337,-1000.0,0.00021918,14]
[358152373,1744784470366,-1000.0,0.00021918,14]
[358152374,1744784470398,-1000.0,0.00021918,14]
[358152375,1744784470427,-1000.0,0.00021918,14]
[358152376,1744784470457,-1000.0,0.00021918,14]
[358152377,1744784470488,-1000.0,0.00021918,14]
[358152378,1744784470517,-1000.0,0.00021918,14]
[358152379,1744784470546,-1000.0,0.00021918,14]
[358152380,1744784470577,-637.409527,0.00021918,14]
[358152381,1744784470606,-1075.69019998,0.00022,14]
[358152382,1744784470638,-1000.0,0.00023,14]
[358152383,1744784487622,358.0,0.00017358,2]
[358152384,1744784493312,-1997.347,0.00021918,10]
[358152385,1744784503468,-175.7975553,0.00019205,7]
[358152386,1744784503511,-201.52847882,0.00021918,7]
[358152387,1744784503532,-300.0,0.00022,7]
[358152388,1744784503554,-18612.2272389,0.00022,7]
[358152389,1744784525221,1000.0,0.00017358,2]
[358152390,1744784708931,503.8,0.00015463,2]
[358152391,1744784709226,-185.60649209,0.0001757,2]
[358152392,1744784719518,1418.22434082,9e-05,2]
[358152393,1744784721648,-9.56740683,0.0001757,2]
[358152394,1744784735635,20099.58624597,9e-05,2]
[358152396,1744784880587,150.0,0.00017425,2]
[358152397,1744784899024,-3970.36,0.00017626,2]
[358152398,1744784899055,-478.07608499,0.00017653,2]
[358152399,1744784915022,2714.26216296,0.000149,2]
[358152400,1744784919192,188.49,0.00017471,2]
[358152401,1744784925001,3567.33676024,0.00013368,2]
[358152415,1744785032223,-713.18391501,0.00017653,2]
[358152416,1744785032233,-503.8,0.00017727,2]
[358152417,1744785032243,-1744.5302471,0.00017856,2]
[358152418,1744785032251,-300.0,0.00017899,2]
[358152419,1744785032260,-4930.71,0.000179,2]
[358152420,1744785032269,-27284.10894385,0.000179,2]
[358152421,1744785032278,-441.77620306,0.000179,2]
[358152422,1744785032287,-251.16920342,0.000179,2]
[358152423,1744785032295,-218.027,0.0001797,2]
[358152424,1744785032304,-502.47933043,0.00017973,2]
[358152425,1744785032313,-207.4,0.00017989,2]
[358152426,1744785032323,-236.68210478,0.00018,4]
[358152427,1744785032335,-63.30789522,0.00018,4]
[358152428,1744785032344,-3546.22991615,0.00018,2]
[358152429,1744785032367,-4268.141244,0.00018,2]
[358152430,1744785032378,-4168.56843775,0.00018,2]
[358152431,1744785032390,-11068.878,0.00018,2]
[358152432,1744785032401,-1302.66754437,0.00018,2]
[358152433,1744785032475,-1424.9202666,0.00018,2]
[358152434,1744785032491,-627.17381463,0.00018,2]
[358152474,1744785038158,-686.06161031,0.00018,2]
[358152475,1744785038241,-19218.23614524,0.00018,2]
[358152476,1744785038252,-1573.38671353,0.00018,2]
[358152477,1744785038327,-218375.81207038,0.00018,2]
[358152478,1744785038336,-770.0,0.00018,2]
[358152479,1744785038346,-1147142.78214406,0.00018,2]
[358152480,1744785038411,-589.97551441,0.00018,2]
[358152549,1744785040839,-1273.216,0.00018,2]
[358152551,1744785040851,-2158.4752107,0.00018,2]
[358152560,1744785046264,-694.0,0.00018,2]
[358152561,1744785046274,-141.22,0.00018,2]
[358152562,1744785046419,-383.39913393,0.00018,2]
[358152565,1744785067976,400.0,0.000173,6]
[358152566,1744785070061,900.0,0.000174,6]
[358152567,1744785072274,1300.0,0.000175,6]
[358152568,1744785074407,1800.0,0.000176,6]
[358152569,1744785076494,2300.0,0.000177,6]
[358152570,1744785078589,400.0,0.000178,6]
[358152571,1744785080684,400.0,0.000179,6]
[358152572,1744785231681,235.64630705,0.00017677,2]
[358152573,1744785460668,200.0,0.00017582,7]
[358152574,1744785557161,-205.42639317,0.00017582,2]
[358152575,1744785813482,250.0,0.00017,2]
[358152576,1744785854044,250.0,0.00017,2]
[358152577,1744785880615,250.0,0.00017492,2]
[358152578,1744786034572,518.63,0.00015545,2]
[358152579,1744786156106,18270.1,0.00017416,2]
[358152581,1744786185874,-794.57360683,0.00017582,2]
[358152582,1744786185908,-347.19340274,0.00017631,2]
[358152592,1744786232442,-248.43659726,0.00017631,2]
[358152593,1744786232453,-14.35369295,0.00017677,2]
[358152594,1744786232462,-182.24834368,0.00017708,2]
[358152595,1744786232471,-748.0,0.000178,2]
[358152596,1744786232480,-518.63,0.00017808,2]
[358152597,1744786232489,-2333.62,0.00017887,2]
[358152598,1744786232497,-303.06003197,0.000179,2]
[358152599,1744786232511,-197.13846532,0.000179,2]
[358152600,1744786232520,-294.5174687,0.000179,2]
[358152601,1744786232529,-160.05,0.00017967,2]
[358152602,1744786232538,-174.422,0.00017989,2]
[358152603,1744786232547,-207.4,0.00017989,2]
[358152604,1744786232560,-300.0,0.00017989,2]
[358152605,1744786232568,-11644.84155534,0.0001799,3]
[358152606,1744786232583,-4167.12112149,0.0001799,3]
[358152607,1744786232656,-3486.43033345,0.0001799,3]
[358152669,1744786238432,-21742.54035215,0.0001799,3]
[358152670,1744786238441,-299.99,0.0001799,4]
[358152671,1744786238452,-2262.59174095,0.00017995,2]
[358152672,1744786238461,-242317.94391667,0.00018,2]
[358152673,1744786238473,-701.0,0.00018,2]
[358152674,1744786238485,-706626.68474715,0.00018,2]
[358152675,1744786238496,-1018.42144013,0.00018,2]
[358152676,1744786238505,-1000.0,0.00018,2]
[358152677,1744786238515,-189160.85145554,0.00018,2]
[358152678,1744786238525,-201158.57056185,0.00018,2]
[358152679,1744786238558,-518.13801026,0.00018,2]
[358152680,1744786238688,-306.58903191,0.00018,2]
[358152681,1744786238730,-1445.87353189,0.00018,2]
[358152697,1744786240659,-220883.04637953,0.00018,2]
[358152698,1744786240671,-3462.05503581,0.00018,2]
[358152699,1744786240682,-666.0,0.00018,2]
[358152700,1744786240816,-1034.6788,0.00018,2]
[358152701,1744786240829,-7901.67657273,0.00018,2]
[358152702,1744786240863,-2045.03238254,0.00018,2]